[Event "Ostravsky Konik-A 2019"]
[Site "Ostrava"]
[Date "2019.04.29"]
[Round "3.7"]
[White "Lys, Josef"]
[Black "Chlevistan, Jakub"]
[Result "0-1"]
[ECO "E19"]
[WhiteElo "2151"]
[BlackElo "2047"]
[Annotator "NA RC"]
[PlyCount "86"]
[EventDate "2019.04.27"]
[EventType "swiss"]
[EventCountry "CZE"]
[SourceTitle "playchess.com"]
[Source "ChessBase"]
[SourceQuality "1"]
[TimeControl "40/5400+30:1800+30"]

1. d4 {[%emt 0:00:00]} Nf6 {[%emt 0:00:00]} 2. c4 {[%emt 0:00:00]} e6 {[%emt 0:00:00]} 3. Nf3 {[%emt 0:00:00]} b6 {[%emt 0:00:03]} 4. g3 {[%emt 0:00:12]} Bb7 {[%emt 0:00:13]} 5. Bg2 {[%emt 0:00:31]} Be7 {[%emt 0:00:35]} 6. O-O {[%emt 0:00:12]} O-O {[%emt 0:00:11]} 7. Nc3 {[%emt 0:00:21]} Ne4 {[%emt 0:00:26]} 8. Qc2 {[%emt 0:01:10]} Nxc3 {[%emt 0:00:51]} 9. Qxc3 {[%emt 0:01:15]} c5 {[%emt 0:00:47]} 10. dxc5 {[%emt 0:03:00]} bxc5 {[%emt 0:00:36]} 11. Bf4 {[%emt 0:00:32]} d6 {[%emt 0:01:19]} 12. Rad1 {[%emt 0:00:41]} Qc7 {[%emt 0:03:01]} 13. Rd2 {[%emt 0:02:46]} h6 {[%emt 0:05:02]} 14. g4 {[%emt 0:01:15]} Nd7 {[%emt 0:04:29]} 15. Rfd1 {[%emt 0:10:16]} Nf6 {[%emt 0:05:19]} 16. Qb3 {[%emt 0:07:55]} e5 {[%emt 0:06:18]} 17. Bg3 {[%emt 0:14:09]} Rab8 {[%emt 0:07:15]} 18. Qc2 {[%emt 0:14:48]} Ne4 {[%emt 0:05:12]} 19. h4 {[%emt 0:02:13]} Nxd2 {[%emt 0:07:35]} 20. Qxd2 {[%emt 0:03:51]} e4 {[%emt 0:10:11]} 21. Ne1 {[%emt 0:02:00]} e3 {[%emt 0:00:35]} 22. Qxe3 {[%emt 0:02:22]} Bxg2 {[%emt 0:00:12]} 23. Nxg2 {[%emt 0:00:45]} Rxb2 {[%emt 0:01:57]} 24. g5 {[%emt 0:01:06]} hxg5 {[%emt 0:01:27]} 25. hxg5 {[%emt 0:00:08]} Rfb8 {[%emt 0:02:53]} 26. Kh2 {[%emt 0:01:57]} Bf8 {[%emt 0:07:30]} 27. g6 {[%emt 0:01:00]} fxg6 {[%emt 0:00:54]} 28. Nf4 {[%emt 0:04:58]} Qf7 {[%emt 0:04:42]} 29. Rd5 {[%emt 0:09:43]} Re8 {[%emt 0:01:35]} 30. Qa3 {[%emt 0:00:33]} Rb4 {[%emt 0:06:22]} 31. Rg5 {[%emt 0:03:31]} Rxc4 {[%emt 0:01:04]} 32. Nxg6 {[%emt 0:03:26]} Rxe2 {[%emt 0:01:48]} 33. Qd3 {[%emt 0:01:56]} Rcc2 {[%emt 0:07:22]} 34. Nxf8 {[%emt 0:02:01]} Rxf2+ {[%emt 0:02:00]} 35. Kh3 {[%emt 0:00:17]} Kxf8 {[%emt 0:03:43]} 36. Bxf2 {[%emt 0:05:44]} Rxf2 {[%emt 0:01:25]} 37. Qxd6+ {[%emt 0:00:08]} Kg8 {[%emt 0:02:03]} 38. Qxc5 {[%emt 0:01:22]} Qf3+ {[%emt 0:00:46]} 39. Rg3 {[%emt 0:00:18]} Qh1+ {[%emt 0:00:38]} 40. Kg4 {[%emt 0:00:06]} Qe4+ {[%emt 0:00:44]} 41. Kh3 {[%emt 0:30:21]} Qh7+ {[%emt 0:30:37]} 42. Kg4 {[%emt 0:00:10]} Qg6+ {[%emt 0:00:00]} 43. Kh3 {[%emt 0:00:00]} Qh6+ {[%emt 0:00:00]} 0-1

[Event "Ostravsky Konik-A 2019"]
[Site "Ostrava"]
[Date "2019.04.30"]
[Round "4.1"]
[White "Sernecki, Franciszek"]
[Black "Mica, Marek"]
[Result "1/2-1/2"]
[ECO "C03"]
[WhiteElo "2259"]
[BlackElo "2139"]
[Annotator "NA"]
[PlyCount "140"]
[EventDate "2019.04.27"]
[EventType "swiss"]
[EventCountry "CZE"]
[SourceTitle "playchess.com"]
[Source "ChessBase"]
[SourceQuality "1"]
[TimeControl "40/5400+30:1800+30"]

1. e4 {[%emt 0:00:00]} e6 {[%emt 0:00:00]} 2. d4 {[%emt 0:00:00]} d5 {[%emt 0:00:00]} 3. Nd2 {[%emt 0:00:00]} Be7 {[%emt 0:00:14]} 4. Ngf3 {[%emt 0:00:59]} Nf6 {[%emt 0:00:20]} 5. Bd3 {[%emt 0:00:38]} c5 {[%emt 0:01:15]} 6. dxc5 {[%emt 0:00:15]} dxe4 {[%emt 0:08:35]} 7. Nxe4 {[%emt 0:00:24]} Nxe4 {[%emt 0:00:30]} 8. Bxe4 {[%emt 0:00:03]} Qxd1+ {[%emt 0:00:15]} 9. Kxd1 {[%emt 0:00:02]} Bxc5 {[%emt 0:00:09]} 10. Ke2 {[%emt 0:00:06]} f5 {[%emt 0:01:44]} 11. Bd3 {[%emt 0:01:20]} Nc6 {[%emt 0:01:02]} 12. Bf4 {[%emt 0:30:40]} Bd7 $11 {[%emt 0:04:32]} 13. c3 {[%emt 0:25:03]} O-O-O {[%emt 0:11:15]} 14. Rhe1 {[%emt 0:01:00]} h6 {[%emt 0:09:58]} 15. Kf1 {[%emt 0:12:51]} g5 {[%emt 0:03:33]} 16. Be5 {[%emt 0:00:42]} Rh7 {[%emt 0:06:21]} 17. Rad1 {[%emt 0:06:10]} g4 {[%emt 0:02:55]} 18. Nd4 {[%emt 0:01:30]} Nxe5 {[%emt 0:08:07]} 19. Rxe5 {[%emt 0:00:21]} Bxd4 {[%emt 0:01:01]} 20. cxd4 {[%emt 0:00:13]} Kc7 {[%emt 0:00:20]} 21. Bc4 {[%emt 0:12:01]} Kd6 {[%emt 0:00:19]} 22. Rde1 {[%emt 0:00:15]} Re7 {[%emt 0:00:41]} 23. Ke2 {[%emt 0:01:18]} Bc6 {[%emt 0:01:34]} 24. Kd2 {[%emt 0:01:15]} Bxg2 {[%emt 0:07:04]} 25. Rxe6+ {[%emt 0:00:50]} Rxe6 {[%emt 0:00:20]} 26. Rxe6+ {[%emt 0:00:01]} Kc7 {[%emt 0:00:33]} 27. Kc3 {[%emt 0:01:57]} Rd6 {[%emt 0:00:57]} 28. Re5 {[%emt 0:01:02]} f4 {[%emt 0:03:57]} 29. Rf5 {[%emt 0:01:01]} g3 {[%emt 0:01:43]} 30. hxg3 {[%emt 0:00:57]} fxg3 {[%emt 0:00:08]} 31. fxg3 {[%emt 0:01:24]} Rg6 {[%emt 0:00:07]} 32. Rf7+ {[%emt 0:00:36]} Kd6 {[%emt 0:03:19]} 33. g4 {[%emt 0:00:28]} Rxg4 {[%emt 0:02:35]} 34. Rf6+ {[%emt 0:00:11]} Kc7 {[%emt 0:00:51]} 35. Rxh6 {[%emt 0:00:24]} Rg3+ {[%emt 0:00:42]} 36. Kd2 {[%emt 0:00:52]} Rg4 {[%emt 0:03:19]} 37. Kc3 {[%emt 0:00:43]} Rg3+ {[%emt 0:00:16]} 38. Kd2 {[%emt 0:00:08]} Rg4 {[%emt 0:00:09]} 39. Ke3 {[%emt 0:00:26]} Bc6 {[%emt 0:01:14]} 40. Rh2 {[%emt 0:01:14]} Kd6 {[%emt 0:00:44]} 41. Rh6+ {[%emt 0:16:17]} Kc7 {[%emt 0:00:00]} 42. Rh2 {[%emt 0:00:05]} Kd6 {[%emt 0:00:05]} 43. a3 {[%emt 0:00:09]} Rg3+ {[%emt 0:01:45]} 44. Kd2 {[%emt 0:02:20]} Rg4 {[%emt 0:00:24]} 45. Kc3 {[%emt 0:02:01]} Rg3+ {[%emt 0:01:07]} 46. Kc2 {[%emt 0:04:27]} Rg4 {[%emt 0:01:15]} 47. Rd2 {[%emt 0:01:49]} Rh4 {[%emt 0:02:09]} 48. Kc3 {[%emt 0:01:08]} Rh5 {[%emt 0:01:58]} 49. Rd3 {[%emt 0:00:53]} Rf5 {[%emt 0:01:42]} 50. Re3 {[%emt 0:01:03]} Rg5 {[%emt 0:02:35]} 51. Bd3 {[%emt 0:01:29]} Rg4 {[%emt 0:00:40]} 52. Bf5 {[%emt 0:01:05]} Rf4 {[%emt 0:01:31]} 53. Be6 {[%emt 0:00:55]} Rh4 {[%emt 0:00:50]} 54. Bf7 {[%emt 0:01:52]} Rf4 {[%emt 0:00:26]} 55. Ba2 {[%emt 0:00:38]} Rf5 {[%emt 0:00:50]} 56. Bb1 {[%emt 0:00:49]} Rf4 {[%emt 0:00:10]} 57. b3 {[%emt 0:00:34]} Bd5 {[%emt 0:01:24]} 58. Bd3 {[%emt 0:00:39]} Bc6 {[%emt 0:01:10]} 59. a4 {[%emt 0:00:28]} Rh4 {[%emt 0:01:07]} 60. Rg3 {[%emt 0:00:17]} Rh5 {[%emt 0:01:16]} 61. Rg6+ {[%emt 0:00:40]} Kc7 {[%emt 0:00:25]} 62. Re6 {[%emt 0:00:52]} Rh4 {[%emt 0:02:16]} 63. Kc4 {[%emt 0:00:38]} Rf4 {[%emt 0:01:51]} 64. Kc5 {[%emt 0:00:55]} Kd7 {[%emt 0:03:31]} 65. Rh6 {[%emt 0:00:19]} b6+ {[%emt 0:04:05]} 66. Kc4 {[%emt 0:00:03]} a6 {[%emt 0:00:28]} 67. Rh7+ {[%emt 0:00:32]} Kd6 {[%emt 0:00:21]} 68. Ra7 {[%emt 0:00:58]} a5 {[%emt 0:03:19]} 69. Rg7 {[%emt 0:00:34]} Bd5+ {[%emt 0:00:51]} 70. Kc3 {[%emt 0:00:33]} Rf3 {[%emt 0:00:08]} 1/2-1/2

[Event "Ostravsky Konik-A 2019"]
[Site "Ostrava"]
[Date "2019.04.30"]
[Round "4.2"]
[White "Ruzicka, Petr"]
[Black "Gnojek, Petr"]
[Result "1/2-1/2"]
[ECO "A04"]
[WhiteElo "2202"]
[BlackElo "2016"]
[Annotator "NA"]
[PlyCount "27"]
[EventDate "2019.04.27"]
[EventType "swiss"]
[EventCountry "CZE"]
[SourceTitle "playchess.com"]
[Source "ChessBase"]
[SourceQuality "1"]
[TimeControl "40/5400+30:1800+30"]

1. Nf3 {[%emt 0:00:00]} d6 {[%emt 0:00:00]} 2. g3 {[%emt 0:00:35]} f5 {[%emt 0:00:49]} 3. d4 {[%emt 0:00:39]} Nf6 {[%emt 0:00:08]} 4. Bg2 {[%emt 0:00:27]} g6 {[%emt 0:00:09]} 5. O-O {[%emt 0:01:03]} Bg7 {[%emt 0:00:13]} 6. a4 {[%emt 0:00:55]} O-O {[%emt 0:07:56]} 7. b3 {[%emt 0:02:38]} c5 {[%emt 0:03:49]} 8. Bb2 {[%emt 0:03:16]} Ne4 {[%emt 0:00:25]} 9. e3 {[%emt 0:04:51]} Nc6 {[%emt 0:01:27]} 10. Nbd2 {[%emt 0:00:30]} d5 {[%emt 0:02:58]} 11. Ne5 {[%emt 0:05:34]} Nxe5 {[%emt 0:14:21]} 12. dxe5 {[%emt 0:01:19]} b6 {[%emt 0:04:37]} 13. f3 {[%emt 0:01:07]} Nxd2 {[%emt 0:00:51]} 14. Qxd2 {[%emt 0:00:41]} 1/2-1/2

[Event "Ostravsky Konik-A 2019"]
[Site "Ostrava"]
[Date "2019.04.30"]
[Round "4.3"]
[White "Stalmach, Richard"]
[Black "Muzik, Martin"]
[Result "1-0"]
[ECO "A41"]
[WhiteElo "1991"]
[BlackElo "2160"]
[Annotator "NA"]
[PlyCount "69"]
[EventDate "2019.04.27"]
[EventType "swiss"]
[EventCountry "CZE"]
[SourceTitle "playchess.com"]
[Source "ChessBase"]
[SourceQuality "1"]
[TimeControl "40/5400+30:1800+30"]

1. d4 {[%emt 0:00:00]} d6 {[%emt 0:00:00]} 2. Nf3 {[%emt 0:00:00]} Bg4 {[%emt 0:00:07]} 3. c4 {[%emt 0:00:15]} Bxf3 {[%emt 0:02:33]} 4. gxf3 {[%emt 0:01:32]} Nd7 {[%emt 0:00:52]} 5. e4 {[%emt 0:00:44]} g6 {[%emt 0:02:32]} 6. Nc3 {[%emt 0:00:46]} Bg7 {[%emt 0:00:34]} 7. Be3 {[%emt 0:00:17]} c5 {[%emt 0:00:39]} 8. d5 {[%emt 0:01:01]} Bxc3+ {[%emt 0:01:00]} 9. bxc3 {[%emt 0:00:06]} Qa5 {[%emt 0:00:54]} 10. Qb3 {[%emt 0:01:52]} O-O-O {[%emt 0:01:14]} 11. Be2 {[%emt 0:04:19]} Ngf6 {[%emt 0:00:51]} 12. O-O {[%emt 0:01:55]} Kb8 {[%emt 0:02:43]} 13. Qc2 {[%emt 0:10:04]} g5 {[%emt 0:02:10]} 14. Kh1 {[%emt 0:01:05]} h6 {[%emt 0:12:27]} 15. f4 {[%emt 0:01:32]} Rdg8 {[%emt 0:02:35]} 16. Rg1 {[%emt 0:01:07]} Nh7 {[%emt 0:08:33]} 17. Bg4 {[%emt 0:24:38]} Qc7 {[%emt 0:03:07]} 18. Bf5 {[%emt 0:06:28]} Ndf6 {[%emt 0:04:41]} 19. e5 {[%emt 0:07:41]} e6 {[%emt 0:05:47]} 20. Bd3 {[%emt 0:02:59]} dxe5 {[%emt 0:07:42]} 21. fxe5 {[%emt 0:00:13]} Qxe5 {[%emt 0:00:22]} 22. Bxc5 {[%emt 0:00:31]} Qc7 {[%emt 0:02:09]} 23. Be3 {[%emt 0:08:23]} Nf8 {[%emt 0:02:06]} 24. Rad1 {[%emt 0:02:07]} N8d7 {[%emt 0:03:32]} 25. Bf1 {[%emt 0:01:37]} Rc8 {[%emt 0:03:55]} 26. d6 {[%emt 0:09:52]} Qc6+ {[%emt 0:00:44]} 27. Bg2 {[%emt 0:01:19]} Qxc4 {[%emt 0:00:33]} 28. Rb1 {[%emt 0:02:32]} b6 {[%emt 0:02:24]} 29. Rb3 {[%emt 0:00:14]} Nd5 {[%emt 0:09:59]} 30. Rd1 {[%emt 0:02:34]} Nc5 {[%emt 0:04:28]} 31. Ra3 {[%emt 0:02:50]} Qg4 {[%emt 0:04:24]} 32. Rd4 {[%emt 0:01:38]} Qh5 {[%emt 0:00:24]} 33. c4 {[%emt 0:01:15]} Nf6 {[%emt 0:01:46]} 34. Qb1 {[%emt 0:01:05]} Rhd8 {[%emt 0:00:48]} 35. Qxb6+ {[%emt 0:00:19]} 1-0

[Event "Ostravsky Konik-A 2019"]
[Site "Ostrava"]
[Date "2019.04.30"]
[Round "4.4"]
[White "Orzechowski, Jacek"]
[Black "Nehyba, Martin"]
[Result "1/2-1/2"]
[ECO "A81"]
[WhiteElo "2139"]
[BlackElo "2113"]
[Annotator "NA"]
[PlyCount "48"]
[EventDate "2019.04.27"]
[EventType "swiss"]
[EventCountry "CZE"]
[SourceTitle "playchess.com"]
[Source "ChessBase"]
[SourceQuality "1"]
[TimeControl "40/5400+30:1800+30"]

1. d4 {[%emt 0:00:00]} f5 {[%emt 0:00:19]} 2. g3 {[%emt 0:00:03]} g6 {[%emt 0:00:08]} 3. Bg2 {[%emt 0:00:08]} Bg7 {[%emt 0:00:08]} 4. Nf3 {[%emt 0:00:08]} Nf6 {[%emt 0:00:03]} 5. c4 {[%emt 0:00:13]} d6 {[%emt 0:00:24]} 6. Nc3 {[%emt 0:00:09]} c6 {[%emt 0:00:33]} 7. d5 {[%emt 0:00:34]} e5 {[%emt 0:01:34]} 8. dxe6 {[%emt 0:17:59]} Bxe6 {[%emt 0:00:08]} 9. Bf4 {[%emt 0:13:11]} Bxc4 {[%emt 0:17:28]} 10. Bxd6 {[%emt 0:13:36]} Ne4 {[%emt 0:13:18]} 11. Be5 {[%emt 0:10:06]} Qxd1+ {[%emt 0:13:17]} 12. Nxd1 {[%emt 0:20:26]} O-O {[%emt 0:14:20]} 13. Bxg7 {[%emt 0:01:38]} Kxg7 {[%emt 0:05:40]} 14. Ne5 {[%emt 0:00:32]} Nd6 {[%emt 0:00:28]} 15. Nc3 {[%emt 0:04:15]} Be6 {[%emt 0:00:29]} 16. O-O-O {[%emt 0:01:00]} Nf7 {[%emt 0:01:27]} 17. Nd3 {[%emt 0:01:38]} Na6 {[%emt 0:01:29]} 18. Nf4 {[%emt 0:00:57]} Nc7 {[%emt 0:03:09]} 19. e4 {[%emt 0:01:19]} fxe4 {[%emt 0:01:30]} 20. Bxe4 {[%emt 0:03:26]} Rad8 {[%emt 0:00:35]} 21. Rhe1 {[%emt 0:01:03]} Bc8 {[%emt 0:01:43]} 22. Rxd8 {[%emt 0:01:10]} Rxd8 {[%emt 0:01:28]} 23. Bc2 {[%emt 0:00:26]} Re8 {[%emt 0:00:26]} 24. Rxe8 {[%emt 0:01:03]} Nxe8 {[%emt 0:00:01]} 1/2-1/2

[Event "Ostravsky Konik-A 2019"]
[Site "Ostrava"]
[Date "2019.04.30"]
[Round "4.5"]
[White "Chlevistan, Jakub"]
[Black "Mrva, Marek"]
[Result "0-1"]
[ECO "B39"]
[WhiteElo "2047"]
[BlackElo "2125"]
[Annotator "NA"]
[PlyCount "62"]
[EventDate "2019.04.27"]
[EventType "swiss"]
[EventCountry "CZE"]
[SourceTitle "playchess.com"]
[Source "ChessBase"]
[SourceQuality "1"]
[TimeControl "40/5400+30:1800+30"]

1. Nf3 {[%emt 0:00:00]} c5 {[%emt 0:00:04]} 2. c4 {[%emt 0:00:00]} Nc6 {[%emt 0:00:11]} 3. d4 {[%emt 0:00:00]} cxd4 {[%emt 0:00:17]} 4. Nxd4 {[%emt 0:00:09]} g6 {[%emt 0:00:21]} 5. e4 {[%emt 0:00:25]} Bg7 {[%emt 0:00:09]} 6. Be3 {[%emt 0:00:29]} Nf6 {[%emt 0:00:13]} 7. Nc3 {[%emt 0:00:38]} Ng4 {[%emt 0:00:52]} 8. Qxg4 {[%emt 0:00:30]} Nxd4 {[%emt 0:00:18]} 9. Qd1 {[%emt 0:00:54]} Ne6 {[%emt 0:00:14]} 10. Qd2 {[%emt 0:02:06]} Qa5 {[%emt 0:03:00]} 11. Rc1 {[%emt 0:01:41]} b6 {[%emt 0:03:11]} 12. Be2 {[%emt 0:07:41]} Bb7 {[%emt 0:01:07]} 13. f3 {[%emt 0:00:51]} g5 {[%emt 0:01:56]} 14. O-O {[%emt 0:04:12]} Qe5 {[%emt 0:02:55]} 15. Rcd1 {[%emt 0:06:51]} Bc6 {[%emt 0:04:22]} 16. g3 {[%emt 0:04:52]} Rg8 {[%emt 0:10:35]} 17. Kf2 {[%emt 0:11:19]} Bf6 {[%emt 0:05:40]} 18. Ke1 {[%emt 0:02:51]} d6 {[%emt 0:04:27]} 19. Rb1 {[%emt 0:07:18]} Nd4 {[%emt 0:18:41]} 20. f4 {[%emt 0:02:03]} gxf4 {[%emt 0:00:27]} 21. gxf4 {[%emt 0:00:09]} Qc5 {[%emt 0:00:23]} 22. Bf2 {[%emt 0:05:45]} Rg2 {[%emt 0:07:00]} 23. Rd1 {[%emt 0:19:58]} a5 {[%emt 0:04:37]} 24. e5 {[%emt 0:04:28]} Rxf2 {[%emt 0:05:34]} 25. Rxf2 {[%emt 0:04:06]} dxe5 {[%emt 0:00:56]} 26. fxe5 {[%emt 0:01:54]} Bxe5 {[%emt 0:00:15]} 27. Nb5 {[%emt 0:02:37]} O-O-O {[%emt 0:01:02]} 28. Na7+ {[%emt 0:03:57]} Kb8 {[%emt 0:01:53]} 29. b4 {[%emt 0:01:40]} axb4 {[%emt 0:00:28]} 30. Nxc6+ {[%emt 0:00:33]} Qxc6 {[%emt 0:00:23]} 31. Bd3 {[%emt 0:03:24]} Nf3+ {[%emt 0:02:33]} 0-1

[Event "Ostravsky Konik-A 2019"]
[Site "Ostrava"]
[Date "2019.04.30"]
[Round "4.6"]
[White "Skola, Miroslav"]
[Black "Matras, Ondrej"]
[Result "1/2-1/2"]
[ECO "C17"]
[WhiteElo "2070"]
[BlackElo "2221"]
[Annotator "NA"]
[PlyCount "80"]
[EventDate "2019.04.27"]
[EventType "swiss"]
[EventCountry "CZE"]
[SourceTitle "playchess.com"]
[Source "ChessBase"]
[SourceQuality "1"]
[TimeControl "40/5400+30:1800+30"]

1. e4 {[%emt 0:00:00]} e6 {[%emt 0:02:20]} 2. d4 {[%emt 0:01:10]} d5 {[%emt 0:00:04]} 3. Nc3 {[%emt 0:01:23]} Bb4 {[%emt 0:00:01]} 4. e5 {[%emt 0:01:25]} c5 {[%emt 0:00:02]} 5. a3 {[%emt 0:00:08]} Ba5 {[%emt 0:00:01]} 6. b4 {[%emt 0:05:56]} cxd4 {[%emt 0:00:02]} 7. Qg4 {[%emt 0:05:08]} Kf8 {[%emt 0:02:39]} 8. Nb5 {[%emt 0:02:40]} Bb6 {[%emt 0:03:16]} 9. Bd3 {[%emt 0:30:51]} Nc6 {[%emt 0:01:11]} 10. f4 {[%emt 0:00:18]} f5 {[%emt 0:10:37]} 11. Qe2 {[%emt 0:04:36]} Nh6 {[%emt 0:01:23]} 12. Nf3 {[%emt 0:00:10]} a6 {[%emt 0:04:06]} 13. Nd6 {[%emt 0:00:39]} Bc7 {[%emt 0:00:27]} 14. Nxc8 {[%emt 0:00:18]} Qxc8 {[%emt 0:01:38]} 15. Bb2 {[%emt 0:01:22]} Bb6 {[%emt 0:00:36]} 16. h3 {[%emt 0:02:08]} Nf7 {[%emt 0:01:14]} 17. Qf2 {[%emt 0:03:19]} g6 {[%emt 0:01:31]} 18. Nxd4 {[%emt 0:02:24]} Nxd4 {[%emt 0:10:55]} 19. Bxd4 {[%emt 0:00:04]} Bxd4 {[%emt 0:00:11]} 20. Qxd4 {[%emt 0:00:01]} Qc7 {[%emt 0:00:14]} 21. c4 {[%emt 0:03:38]} dxc4 {[%emt 0:00:21]} 22. Qxc4 {[%emt 0:01:45]} Qxc4 {[%emt 0:00:40]} 23. Bxc4 {[%emt 0:00:02]} Ke7 {[%emt 0:00:09]} 24. Kf2 {[%emt 0:02:00]} Rac8 {[%emt 0:00:20]} 25. Rac1 {[%emt 0:00:41]} Rhd8 {[%emt 0:00:21]} 26. Ke3 {[%emt 0:01:25]} Rd7 {[%emt 0:02:26]} 27. Be2 {[%emt 0:01:12]} Rdc7 {[%emt 0:02:04]} 28. Kd2 {[%emt 0:00:13]} Nd8 {[%emt 0:05:05]} 29. Bf3 {[%emt 0:00:36]} Nc6 {[%emt 0:03:10]} 30. Bxc6 {[%emt 0:00:16]} Rxc6 {[%emt 0:00:20]} 31. Rxc6 {[%emt 0:04:11]} Rxc6 {[%emt 0:00:02]} 32. h4 {[%emt 0:00:18]} Rc4 {[%emt 0:03:54]} 33. g3 {[%emt 0:00:13]} h5 {[%emt 0:02:16]} 34. Rc1 {[%emt 0:07:51]} Rxc1 {[%emt 0:01:35]} 35. Kxc1 {[%emt 0:00:02]} Kd7 {[%emt 0:00:08]} 36. Kc2 {[%emt 0:00:30]} Kc6 {[%emt 0:00:02]} 37. a4 {[%emt 0:01:41]} Kd5 {[%emt 0:02:40]} 38. Kc3 {[%emt 0:04:15]} b6 {[%emt 0:07:54]} 39. Kd3 {[%emt 0:00:19]} a5 {[%emt 0:01:11]} 40. b5 {[%emt 0:00:14]} Kc5 {[%emt 0:00:11] Ke4} 1/2-1/2

[Event "Ostravsky Konik-A 2019"]
[Site "Ostrava"]
[Date "2019.04.30"]
[Round "4.7"]
[White "Vesely, Libor"]
[Black "Boleslav, Petr"]
[Result "1-0"]
[ECO "B00"]
[WhiteElo "2214"]
[BlackElo "2032"]
[Annotator "NA"]
[PlyCount "55"]
[EventDate "2019.04.27"]
[EventType "swiss"]
[EventCountry "CZE"]
[SourceTitle "playchess.com"]
[Source "ChessBase"]
[SourceQuality "1"]
[TimeControl "40/5400+30:1800+30"]

1. e4 {[%emt 0:00:08]} d6 {[%emt 0:03:06]} 2. Nc3 {[%emt 0:00:22]} g6 {[%emt 0:00:32]} 3. f4 {[%emt 0:00:27]} Bg7 {[%emt 0:00:32]} 4. Nf3 {[%emt 0:00:08]} a6 {[%emt 0:01:18]} 5. a4 {[%emt 0:00:30]} c5 {[%emt 0:01:10]} 6. Bc4 {[%emt 0:01:11]} Nf6 {[%emt 0:00:58]} 7. d3 {[%emt 0:02:36]} Nc6 {[%emt 0:04:07]} 8. h3 {[%emt 0:02:19]} Nd4 {[%emt 0:06:05]} 9. O-O {[%emt 0:03:03]} O-O 10. Nxd4 {[%emt 0:06:33]} cxd4 {[%emt 0:10:04]} 11. Ne2 {[%emt 0:00:08]} Ne8 {[%emt 0:04:18]} 12. f5 {[%emt 0:06:28]} Nc7 {[%emt 0:05:31]} 13. Nf4 {[%emt 0:05:44]} e6 {[%emt 0:03:31]} 14. Qf3 {[%emt 0:12:10]} Rb8 {[%emt 0:08:56]} 15. Nh5 {[%emt 0:11:27]} gxh5 {[%emt 0:04:44]} 16. f6 {[%emt 0:00:56]} Bxf6 {[%emt 0:00:27]} 17. Qxf6 {[%emt 0:03:45]} Qxf6 {[%emt 0:04:19]} 18. Rxf6 {[%emt 0:00:51]} d5 {[%emt 0:02:02]} 19. Bb3 {[%emt 0:02:42]} Ne8 {[%emt 0:02:49]} 20. Rh6 {[%emt 0:08:30]} dxe4 {[%emt 0:02:32]} 21. dxe4 {[%emt 0:01:24]} f5 {[%emt 0:04:20]} 22. Bf4 {[%emt 0:06:00]} Kg7 {[%emt 0:01:51]} 23. Rxh5 {[%emt 0:00:52]} Kg6 {[%emt 0:01:25]} 24. Rh6+ {[%emt 0:03:33]} Kg7 {[%emt 0:00:27]} 25. Rh4 {[%emt 0:00:10]} Ra8 {[%emt 0:00:33]} 26. Bh6+ {[%emt 0:00:17]} Kg8 {[%emt 0:00:18]} 27. Bxf8 {[%emt 0:01:06]} Kxf8 {[%emt 0:00:02]} 28. exf5 {[%emt 0:00:16]} 1-0

[Event "Ostravsky Konik-A 2019"]
[Site "Ostrava"]
[Date "2019.04.30"]
[Round "4.8"]
[White "Janiszewski, Maciej"]
[Black "Pavera, Vit"]
[Result "1-0"]
[ECO "A06"]
[WhiteElo "2145"]
[BlackElo "2026"]
[Annotator "NA"]
[PlyCount "63"]
[EventDate "2019.04.27"]
[EventType "swiss"]
[EventCountry "CZE"]
[SourceTitle "playchess.com"]
[Source "ChessBase"]
[SourceQuality "1"]
[TimeControl "40/5400+30:1800+30"]

1. Nf3 {[%emt 0:00:00]} d5 {[%emt 0:00:14]} 2. d4 {[%emt 0:00:00]} e6 {[%emt 0:01:33]} 3. c4 {[%emt 0:00:00]} c6 {[%emt 0:00:57]} 4. Qc2 {[%emt 0:00:22]} Nf6 {[%emt 0:11:25]} 5. g3 {[%emt 0:00:34]} Be7 {[%emt 0:01:41]} 6. Bg2 {[%emt 0:00:08]} O-O {[%emt 0:00:19]} 7. O-O {[%emt 0:00:09]} Nbd7 {[%emt 0:14:06]} 8. Rd1 {[%emt 0:00:24]} Ne4 {[%emt 0:03:34]} 9. Nfd2 {[%emt 0:00:46]} f5 {[%emt 0:00:37]} 10. f3 {[%emt 0:00:12]} Nd6 {[%emt 0:06:08]} 11. b3 {[%emt 0:06:48]} Nf6 {[%emt 0:12:22]} 12. Nc3 {[%emt 0:00:59]} Nf7 {[%emt 0:06:33]} 13. Nf1 {[%emt 0:08:53]} Qc7 {[%emt 0:06:36]} 14. Bf4 {[%emt 0:06:28]} Bd6 {[%emt 0:01:23]} 15. Bxd6 {[%emt 0:00:44]} Nxd6 {[%emt 0:08:58]} 16. e4 {[%emt 0:01:05]} fxe4 {[%emt 0:01:43]} 17. fxe4 {[%emt 0:00:05]} Ng4 {[%emt 0:00:37]} 18. h3 {[%emt 0:09:43]} Nf2 {[%emt 0:01:37]} 19. e5 {[%emt 0:00:09]} Nxc4 {[%emt 0:09:38]} 20. bxc4 {[%emt 0:00:41]} Nxd1 {[%emt 0:00:09]} 21. Rxd1 {[%emt 0:00:15]} b5 {[%emt 0:01:48]} 22. cxb5 {[%emt 0:08:24]} cxb5 {[%emt 0:00:06]} 23. Ne3 {[%emt 0:03:04]} Rb8 {[%emt 0:04:27]} 24. Qb3 {[%emt 0:02:41]} Bd7 {[%emt 0:02:13]} 25. Ne2 {[%emt 0:02:16]} Rfc8 {[%emt 0:01:43]} 26. h4 {[%emt 0:03:35]} Qb6 {[%emt 0:01:07]} 27. Bh3 {[%emt 0:03:47]} Qb7 {[%emt 0:00:59]} 28. Nf4 {[%emt 0:00:33]} Re8 {[%emt 0:00:44]} 29. Nd3 {[%emt 0:01:28]} Kh8 {[%emt 0:00:34]} 30. Nc5 {[%emt 0:00:14]} Qc8 {[%emt 0:00:02]} 31. Nxd5 {[%emt 0:00:54]} Bc6 {[%emt 0:00:26]} 32. Nf4 {[%emt 0:00:40]} 1-0